fUSD/lending_fUSD_20240428
["ID","MTS","AMOUNT","RATE_DAILY","PERIOD"]
[323777667,1714283460580,-500.0,0.0002041,2]
[323777668,1714283460593,-500.0,0.0002041,2]
[323777669,1714283460604,-500.0,0.0002041,2]
[323777670,1714283460613,-500.0,0.0002041,2]
[323777671,1714283460624,-321.2704416,0.0002041,2]
[323777672,1714283460634,-500.0,0.0002041,2]
[323777673,1714283460644,-500.0,0.0002041,2]
[323777674,1714283460655,-561.14769031,0.0002041,2]
[323777675,1714283460665,-571.7104413,0.0002041,2]
[323777676,1714283460676,-500.0,0.0002041,2]
[323777677,1714283460687,-500.0,0.0002041,2]
[323777678,1714283460696,-500.0,0.0002041,2]
[323777679,1714283460706,-500.0,0.0002041,2]
[323777680,1714283460716,-500.0,0.0002041,2]
[323777681,1714283460912,-500.0,0.0002041,2]
[323777682,1714283460922,-500.0,0.0002041,2]
[323777683,1714283460931,-500.0,0.0002041,2]
[323777684,1714283460941,-500.0,0.0002041,2]
[323777685,1714283460951,-500.0,0.0002041,2]
[323777686,1714283460962,-501.46292253,0.0002041,2]
[323777687,1714283460972,-500.0,0.0002041,2]
[323777688,1714283460981,-500.0,0.0002041,2]
[323777689,1714283460991,-500.0,0.0002041,2]
[323777690,1714283461001,-645.04599701,0.0002041,2]
[323777691,1714283461010,-500.0,0.0002041,2]
[323777692,1714283461021,-500.0,0.0002041,2]
[323777693,1714283461031,-504.20987347,0.0002041,2]
[323777694,1714283461040,-331.53596328,0.0002041,2]
[323777695,1714283461050,-468.02319895,0.0002041,2]
[323777696,1714283461060,-500.0,0.0002041,2]
[323777697,1714283461071,-500.0,0.0002041,2]
[323777698,1714283461080,-500.0,0.0002041,2]
[323777699,1714283461090,-501.50740095,0.0002041,2]
[323777700,1714283461099,-500.0,0.0002041,2]
[323777701,1714283461108,-500.0,0.0002041,2]
[323777702,1714283461118,-503.27967355,0.0002041,2]
[323777703,1714283461127,-500.0,0.0002041,2]
[323777704,1714283461135,-500.0,0.0002041,2]
[323777705,1714283461144,-500.0,0.0002041,2]
[323777706,1714283461153,-500.0,0.0002041,2]
[323777707,1714283461162,-550.31291428,0.0002041,2]
[323777708,1714283461171,-624.83569996,0.0002041,2]
[323777709,1714283461180,-500.0,0.0002041,2]
[323777710,1714283461189,-200.69789007,0.0002041,10]
[323777711,1714283461198,-500.0,0.0002041,2]
[323777712,1714283461207,-319.13797077,0.0002041,2]
[323777713,1714283461217,-501.47690339,0.0002041,2]
[323777714,1714283461226,-500.0,0.0002041,2]
[323777715,1714283461235,-500.0,0.0002041,2]
[323777716,1714283461244,-500.0,0.0002041,2]
[323777717,1714283461253,-503.42656924,0.0002041,2]
[323777718,1714283461262,-500.0,0.0002041,2]
[323777719,1714283461271,-500.18677774,0.0002041,2]
[323777720,1714283461280,-500.0,0.0002041,2]
[323777721,1714283461289,-501.44316616,0.0002041,2]
[323777722,1714283461298,-208.24977692,0.0002041,2]
[323777723,1714283461307,-500.89782748,0.0002041,2]
[323777724,1714283461317,-500.0,0.0002041,2]
[323777725,1714283461326,-503.47340021,0.0002041,2]
[323777726,1714283461334,-500.0,0.0002041,2]
[323777727,1714283461344,-500.0,0.0002041,2]
[323777728,1714283461353,-305.0349566,0.0002041,2]
[323777729,1714283461362,-500.0,0.0002041,2]
[323777730,1714283461371,-500.46687071,0.0002041,2]
[323777731,1714283461380,-535.66072933,0.0002041,2]
[323777732,1714283461390,-500.0,0.0002041,2]
[323777733,1714283461398,-500.0,0.0002041,2]
[323777734,1714283461408,-504.57093374,0.0002041,2]
[323777735,1714283461417,-500.95382917,0.0002041,2]
[323777736,1714283461426,-500.0,0.0002041,2]
[323777737,1714283461436,-500.0,0.0002041,2]
[323777738,1714283461445,-500.0,0.0002041,2]
[323777739,1714283461454,-500.0,0.0002041,2]
[323777740,1714283461464,-502.88117618,0.0002041,2]
[323777741,1714283461473,-501.46689405,0.0002041,2]
[323777742,1714283461482,-501.20099453,0.0002041,2]
[323777743,1714283461490,-264.05617247,0.0002041,2]
[323777744,1714283461499,-500.0,0.0002041,2]
[323777745,1714283461508,-500.48700765,0.0002041,2]
[323777746,1714283461521,-501.19229934,0.0002041,2]
[323777747,1714283461530,-500.0,0.0002041,2]
[323777748,1714283461539,-229.73117533,0.0002041,2]
[323777749,1714283461548,-502.21378996,0.0002041,2]
[323777750,1714283461557,-500.0,0.0002041,2]
[323777751,1714283461566,-500.0,0.0002041,2]
[323777752,1714283461575,-500.0,0.0002041,2]
[323777753,1714283461584,-500.0,0.0002041,2]
[323777754,1714283461594,-500.0,0.0002041,2]
[323777755,1714283461604,-501.57143505,0.0002041,2]
[323777756,1714283461614,-310.79258006,0.0002041,2]
[323777757,1714283461623,-501.58200696,0.0002041,2]
[323777758,1714283461634,-500.0,0.0002041,2]
[323777759,1714283461644,-500.0,0.0002041,2]
[323777760,1714283461653,-500.66541556,0.0002041,2]
[323777761,1714283461662,-500.0,0.0002041,2]
[323777762,1714283461672,-500.68490801,0.0002041,2]
[323777763,1714283461682,-500.0,0.0002041,2]
[323777764,1714283461691,-500.0,0.0002041,2]
[323777765,1714283461700,-501.84830246,0.0002041,2]
[323777766,1714283461710,-500.0,0.0002041,2]
[323777767,1714283461720,-500.0,0.0002041,2]
[323777768,1714283461730,-500.0,0.0002041,2]
[323777769,1714283461741,-500.0,0.0002041,2]
[323777770,1714283461751,-1000.0,0.0002041,2]
[323777771,1714283461760,-500.0,0.0002041,2]
[323777772,1714283461771,-500.0,0.0002041,2]
[323777773,1714283461782,-1857.3,0.0002041,2]
[323777774,1714283461791,-1954.29,0.0002041,2]
[323777775,1714283461801,-500.0,0.0002041,2]
[323777776,1714283461812,-156.08678202,0.0002041,2]
[323777777,1714283461822,-1707.56,0.0002041,2]
[323777778,1714283461831,-500.0,0.0002041,2]
[323777779,1714283461842,-500.0,0.0002041,2]
[323777780,1714283461852,-500.0,0.0002041,2]
[323777781,1714283461862,-1348.2,0.0002041,2]
[323777782,1714283461871,-466.31797727,0.0002041,2]
[323777783,1714283461880,-1999.44,0.0002041,2]
[323777784,1714283461890,-735.35,0.0002041,2]
[323777785,1714283461899,-1489.82,0.0002041,2]
[323777786,1714283461908,-500.0,0.0002041,2]
[323777787,1714283461918,-500.86811586,0.0002041,2]
[323777788,1714283461928,-500.92235202,0.0002041,2]
[323777789,1714283461938,-501.24264735,0.0002041,2]
[323777790,1714283461949,-500.0,0.0002041,2]
[323777791,1714283461958,-500.0,0.0002041,2]
[323777792,1714283461966,-500.88528466,0.0002041,2]
[323777793,1714283461977,-364.87037225,0.0002041,2]
[323777794,1714283461987,-500.0,0.0002041,2]
[323777795,1714283461997,-500.0,0.0002041,2]
[323777796,1714283462006,-758.23,0.0002041,2]
[323777797,1714283462015,-500.26766164,0.0002041,2]
[323777798,1714283462025,-1455.76,0.0002041,2]
[323777799,1714283462035,-543.64623387,0.0002041,2]
[323777800,1714283462045,-500.0,0.0002041,2]
[323777801,1714283462055,-500.66848962,0.0002041,2]
[323777802,1714283462064,-1146.46,0.0002041,2]
[323777803,1714283462076,-214.19206896,0.0002041,2]
[323777804,1714283462086,-2224.25,0.0002041,2]
[323777805,1714283462097,-500.0,0.0002041,2]
[323777806,1714283462106,-500.0,0.0002041,2]
[323777807,1714283462115,-2334.94,0.0002041,2]
[323777808,1714283462125,-1433.97,0.0002041,2]
[323777809,1714283462134,-500.0,0.0002041,2]
[323777810,1714283462143,-500.0,0.0002041,2]
[323777811,1714283462151,-574.06,0.0002041,2]
[323777812,1714283462161,-962.57,0.0002041,2]
[323777813,1714283462170,-500.6525136,0.0002041,2]
[323777814,1714283462180,-2291.27,0.0002041,2]
[323777815,1714283462190,-948.54,0.0002041,2]
[323777816,1714283462200,-174.86081817,0.0002041,2]
[323777817,1714283462209,-2122.35,0.0002041,2]
[323777818,1714283462219,-500.0,0.0002041,2]
[323777819,1714283462228,-1094.04,0.0002041,2]
[323777820,1714283462238,-1269.52,0.0002041,2]
[323777821,1714283462247,-500.0,0.0002041,2]
[323777822,1714283462255,-1718.57,0.0002041,2]
[323777823,1714283462264,-500.0,0.0002041,2]
[323777824,1714283462274,-978.2,0.0002041,2]
[323777825,1714283462284,-1189.17,0.0002041,2]
[323777826,1714283462293,-924.66,0.0002041,2]
[323777827,1714283462302,-2225.89,0.0002041,2]
[323777828,1714283462311,-1258.78,0.0002041,2]
[323777829,1714283462320,-151.0,0.0002041,2]
[323777830,1714283462329,-761.85,0.0002041,2]
[323777831,1714283462339,-611.74,0.0002041,2]
[323777832,1714283462349,-522.33,0.0002041,2]
[323777833,1714283462358,-500.0,0.0002041,2]
[323777834,1714283462368,-501.52792704,0.0002041,2]
[323777835,1714283462378,-1484.75,0.0002041,2]
[323777836,1714283462387,-500.0,0.0002041,2]
[323777837,1714283462396,-1061.07,0.0002041,2]
[323777838,1714283462405,-502.54748704,0.0002041,2]
[323777839,1714283462416,-1880.52,0.0002041,2]
[323777840,1714283462426,-500.0,0.0002041,2]
[323777841,1714283462435,-1533.87,0.0002041,2]
[323777842,1714283462444,-507.55251874,0.0002041,2]
[323777843,1714283462453,-1261.57,0.0002041,2]
[323777844,1714283462462,-1180.73,0.0002041,2]
[323777845,1714283462472,-1369.13,0.0002041,2]
[323777846,1714283462483,-419.668711,0.0002041,2]
[323777847,1714283462492,-419.668711,0.0002041,2]
[323777848,1714283462502,-500.0,0.0002041,2]
[323777849,1714283462511,-1486.1,0.0002041,2]
[323777850,1714283462524,-1191.89,0.0002041,2]
[323777851,1714283462534,-2950.56,0.0002041,2]
[323777852,1714283462543,-1621.4,0.0002041,2]
[323777853,1714283462553,-1109.25,0.0002041,2]
[323777854,1714283462562,-651.23,0.0002041,2]
[323777855,1714283462572,-363.14005,0.0002041,2]
[323777856,1714283462581,-363.14005,0.0002041,2]
[323777857,1714283462591,-500.0,0.0002041,2]
[323777858,1714283462601,-1975.89,0.0002041,2]
[323777859,1714283462610,-1284.08,0.0002041,2]
[323777860,1714283462620,-500.0,0.0002041,2]
[323777861,1714283462631,-1759.16,0.0002041,2]
[323777862,1714283462643,-1081.29,0.0002041,2]
[323777863,1714283462653,-244.61,0.00020411,2]
[323777864,1714283462664,-177.18201028,0.00020412,2]
[323777865,1714283462674,-15733.1538917,0.00020447,2]
[323777866,1714283462684,-313.20163,0.00020447,2]
[323777867,1714283462695,-313.20163,0.00020447,2]
[323777868,1714283462705,-150.0,0.000205,2]
[323777869,1714283462715,-150.0,0.000205,2]
[323777870,1714283462725,-167.1,0.000205,2]
[323777871,1714283462734,-150.0,0.00020502,2]
[323777872,1714283462744,-500.0,0.00020507,2]
[323777873,1714283462755,-500.0,0.00020507,2]
[323777874,1714283462766,-7591.07,0.00020508,2]
[323777875,1714283462777,-300.0,0.00020521,2]
[323777876,1714283462787,-268.88,0.00020521,2]
[323777877,1714283462797,-500.0,0.00020544,2]
[323777878,1714283462808,-2456.94,0.00020544,2]
[323777879,1714283462819,-2579.98,0.00020544,2]
[323777880,1714283462828,-988.96,0.00020544,2]
[323777881,1714283462840,-2552.85,0.00020544,2]
[323777882,1714283462851,-500.0,0.00020544,2]
[323777883,1714283462863,-3041.11,0.00020544,2]
[323777884,1714283462873,-808.9,0.00020544,2]
[323777885,1714283462884,-11556.34,0.00020544,2]
[323777886,1714283462895,-3347.25,0.00020544,2]
[323777887,1714283462906,-17669.58,0.00020544,2]
[323777888,1714283462916,-1426.7,0.00020544,2]
[323777889,1714283462926,-2922.27,0.00020544,2]
[323777890,1714283462938,-500.0,0.00020544,2]
[323777891,1714283462949,-5181.9,0.00020544,2]
[323777892,1714283462958,-11847.33,0.00020544,2]
[323777893,1714283462971,-3269.72,0.00020544,2]
[323777894,1714283462981,-2751.24,0.00020544,2]
[323777895,1714283462991,-2191.38,0.00020544,2]
[323777896,1714283463003,-5188.61,0.00020544,2]
[323777897,1714283463016,-1844.05,0.00020544,2]
[323777898,1714283463027,-8810.71,0.00020544,2]
[323777899,1714283463039,-523.32225405,0.00020544,2]
[323777900,1714283463050,-1164.6,0.00020544,2]
[323777901,1714283463060,-1496.67,0.00020544,2]
[323777902,1714283463071,-547.73454639,0.00020544,2]
[323777903,1714283463081,-500.0,0.00020545,2]
[323777904,1714283463090,-500.0,0.00020545,2]
[323777905,1714283463099,-500.0,0.00020545,2]
[323777906,1714283463109,-786.26,0.00020545,2]
[323777907,1714283463119,-500.0,0.00020545,2]
[323777908,1714283463130,-471.31684691,0.00020545,2]
[323777909,1714283465014,-500.0,0.00019996,2]
[323777910,1714283465025,-500.0,0.00019996,2]
[323777911,1714283465036,-500.0,0.0002027,2]
[323777912,1714283465046,-500.0,0.0002027,2]
[323777913,1714283465056,-510.8,0.00020544,2]
[323777914,1714283465066,-155.91315309,0.00020545,2]
[323777915,1714283465076,-537.45,0.00020545,2]
[323777916,1714283465086,-500.0,0.00020545,2]
[323777917,1714283465097,-500.0,0.00020545,2]
[323777918,1714283465107,-519.15,0.00020545,2]
[323777919,1714283465117,-736.97,0.00020545,2]
[323777920,1714283465127,-959.92,0.00020545,2]
[323777921,1714283465137,-973.94,0.00020545,2]
[323777922,1714283465147,-726.46,0.00020545,2]
[323777923,1714283465157,-550.37401617,0.00020545,2]
[323777924,1714283465168,-500.0,0.00020545,2]
[323777925,1714283465177,-500.0,0.00020545,2]
[323777926,1714283465188,-601.21,0.00020545,2]
[323777927,1714283465198,-500.0,0.00020545,2]
[323777928,1714283465208,-777.15,0.00020545,2]
[323777929,1714283465219,-500.0,0.00020545,2]
[323777930,1714283465229,-731.54,0.00020545,2]
[323777931,1714283465239,-299.12283074,0.00020545,2]
[323777932,1714283466769,-155.39157759,0.00019995,2]
[323777933,1714283466779,-211.7695785,0.00019995,2]
[323777934,1714283466793,-500.0,0.00020544,2]
[323777935,1714283466804,-200.87716926,0.00020545,2]
[323777936,1714283466814,-500.0,0.00020545,2]
[323777937,1714283466825,-500.0,0.00020545,2]
[323777938,1714283466835,-183.72628604,0.00020545,2]
[323777939,1714283466848,-1690.55,0.00020545,2]
[323777940,1714283466862,-500.0,0.00020545,2]
[323777941,1714283466874,-500.0,0.00020545,2]
[323777942,1714283466894,-500.0,0.00020545,2]
[323777943,1714283466922,-500.0,0.00020545,2]
[323777944,1714283466938,-835.26,0.00020545,2]
[323777945,1714283466950,-500.0,0.00020545,2]
[323777946,1714283466970,-500.0,0.00020545,2]
[323777947,1714283466998,-500.0,0.00020545,2]
[323777948,1714283467018,-500.0,0.00020545,2]
[323777949,1714283467030,-500.0,0.00020545,2]
[323777950,1714283467061,-542.1,0.00020545,2]
[323777951,1714283467081,-500.0,0.00020545,2]
[323777952,1714283467092,-500.0,0.00020545,2]
[323777953,1714283467102,-663.26,0.00020545,2]
[323777954,1714283467119,-500.0,0.00020545,2]
[323777955,1714283467146,-565.7,0.00020545,2]
[323777956,1714283467164,-577.85,0.00020545,2]
[323777957,1714283467174,-301.71538861,0.00020545,2]
[323777958,1714283467187,-198.28461139,0.00020545,2]
[323777959,1714283467197,-529.6,0.00020545,2]
[323777960,1714283467216,-500.0,0.00020545,2]
[323777961,1714283467227,-721.88,0.00020545,2]
[323777962,1714283467257,-500.0,0.00020545,2]
[323777963,1714283467273,-500.0,0.00020545,2]
[323777964,1714283467284,-500.0,0.00020545,2]
[323777965,1714283467293,-2323.30990874,0.00020545,2]
[323777966,1714283467305,-317.53166409,0.00020545,2]
[323777967,1714283467320,-273.77749137,0.00020545,2]
[323777968,1714283467336,-1436.52759672,0.00020545,2]
[323777971,1714284631533,-236.65157251,0.00010998,2]
[323777972,1714284631543,-194.49480945,0.00010998,2]
[323777973,1714284631552,-150.0,0.00010999,2]
[323777974,1714284631562,-271.79676283,0.00011,2]
[323777975,1714284631642,-4048.13730011,0.00011,2]
[323777976,1714284631694,-4168.1130119,0.00011,2]
[323777977,1714284631705,-6687.54697176,0.00011,2]
[323777980,1714284637657,-950.35966902,0.00011,2]
[323777981,1714284637667,-200.0,0.00011,2]
[323777982,1714284637676,-312.5401955,0.00012348,2]
[323777983,1714284637686,-155.15597947,0.0001299,2]
[323777984,1714284637695,-169.58,0.0001299,2]
[323777985,1714284637704,-169.58,0.0001299,2]
[323777986,1714284637713,-169.58,0.0001299,2]
[323777987,1714284637722,-169.58,0.0001299,2]
[323777988,1714284637732,-169.58,0.0001299,2]
[323777989,1714284637741,-169.58,0.0001299,2]
[323777990,1714284637750,-169.58,0.0001299,2]
[323777991,1714284637760,-169.58,0.0001299,2]
[323777992,1714284637769,-169.58,0.0001299,2]
[323777993,1714284637778,-892.85048398,0.00012998,2]
[323777994,1714284637787,-155.24125363,0.00012998,2]
[323777995,1714284637796,-262.37214807,0.00012998,2]
[323777996,1714284637805,-32630.32399471,0.00012998,2]
[323777997,1714284637815,-1186.20667968,0.00012998,2]
[323777999,1714284637824,-1923.75658816,0.00012998,2]
[323778001,1714284637833,-340.11600987,0.00012998,2]
[323778003,1714284637845,-554.91863656,0.00012998,2]
[323778004,1714284637854,-539.45421001,0.00012998,2]
[323778005,1714284637864,-2868.14008483,0.00012998,2]
[323778006,1714284637873,-1582.28825957,0.00012998,2]
[323778007,1714284637882,-193.14368114,0.00012998,2]
[323778008,1714284637891,-211.06133864,0.00012998,2]
[323778009,1714284637900,-639244.76917616,0.00013,2]
[323778011,1714284638178,-433170.43492301,0.00013,2]
[323778038,1714284642877,-11768.50141205,0.00013,2]
[323778045,1714284645717,-1716.68640014,0.00013,2]
[323778053,1714284748916,-313.92942617,0.00010897,2]
[323778054,1714284784030,179.74414857,0.00010897,2]
[323778055,1714284800016,233.38894399,0.00010897,2]
[323778056,1714284882444,194.49480945,0.00010897,2]
[323778057,1714284918754,-4000.0,0.00010898,2]
[323778058,1714284921896,236.65157251,0.00010897,2]
[323778059,1714284924066,-4000.0,0.00010898,2]
[323778060,1714284926046,-3459.9165,0.00010898,2]
[323778061,1714285718525,10000.0,0.0002375,90]
[323778066,1714285751992,163.0,0.0002375,90]
[323778074,1714285831661,-194.49480945,0.00010999,2]
[323778075,1714285831671,-200.0,0.00011,2]
[323778076,1714285831680,-249.10433076,0.00011899,2]
[323778077,1714285831691,-1015.83173565,0.00011899,2]
[323778078,1714285831702,-308.807424,0.00011899,2]
[323778079,1714285831841,-168.27380959,0.00011899,2]
[323778080,1714285831850,-5363.97098038,0.00011999,7]
[323778081,1714285831862,-317.65,0.00011999,7]
[323778083,1714285832015,-865.46028817,0.00011999,7]
[323778085,1714285832026,-309.31034047,0.00011999,7]
[323778087,1714285832056,-992.93870375,0.00011999,7]
[323778088,1714285832065,-169.58,0.0001299,2]
[323778089,1714285832075,-11214.33070647,0.00012998,2]
[323778090,1714285832089,-299.66504719,0.00012998,2]
[323778091,1714285832102,-341.48088377,0.00012998,2]
[323778092,1714285832117,-469.63521555,0.00012998,2]
[323778093,1714285832130,-659.47,0.00012998,2]
[323778094,1714285832155,-833.79793316,0.00012998,2]
[323778095,1714285832166,-318.86689986,0.00012998,2]
[323778096,1714285832177,-253.92241788,0.00012998,2]
[323778097,1714285832245,-431.68946421,0.00012998,2]
[323778098,1714285832255,-242.83300446,0.00012998,2]
[323778099,1714285832268,-442.62190874,0.00012998,2]
[323778100,1714285832279,-573.58195293,0.00012998,7]
[323778101,1714285832289,-334.37880538,0.00012998,2]
[323778102,1714285832299,-157.18740495,0.00012998,2]
[323778103,1714285832308,-225.65093677,0.00012999,2]
[323778104,1714285832321,-1290.90309334,0.00012999,2]
[323778105,1714285832355,-1897.83757655,0.00012999,2]
[323778106,1714285832366,-404.8762609,0.00012999,2]
[323778107,1714285832375,-162.14721555,0.00012999,2]
[323778108,1714285832385,-9188.1771926,0.00013,2]
[323778109,1714285832396,-505.38615579,0.00013,2]
[323778110,1714285832408,-660.722,0.00013,2]
[323778111,1714285832421,-49808.79107644,0.00013,2]
[323778114,1714285837630,-639244.76917616,0.00013,2]
[323778115,1714285838084,-116407.68445276,0.00013,2]
[323778118,1714285838101,-3000.0,0.00013,2]
[323778121,1714285838113,-346.58,0.0001343,2]
[323778122,1714285838126,-499.99,0.00013797,2]
[323778125,1714285838138,-500.0,0.00014381,2]
[323778127,1714285838149,-6706.27052445,0.000149,2]
[323778129,1714285838160,-3505.00972487,0.00015,2]
[323778131,1714285838171,-1455.36,0.00015,2]
[323778133,1714285838181,-8584.06854744,0.00015,2]
[323778135,1714285838192,-9779.61,0.00015348,2]
[323778136,1714285838202,-8211.99,0.00015404,2]
[323778137,1714285838213,-2148.83,0.00015473,2]
[323778138,1714285838223,-500.0,0.0001555,2]
[323778139,1714285838233,-250.0,0.00015565,2]
[323778140,1714285838244,-200.0,0.00015575,2]
[323778141,1714285838255,-12270.02,0.00015581,2]
[323778142,1714285838267,-194.72,0.00015582,2]
[323778143,1714285838277,-1000.0,0.00015601,2]
[323778144,1714285838287,-706.17,0.00015604,2]
[323778145,1714285838297,-176.58,0.00015662,2]
[323778146,1714285838306,-154.24,0.00015682,2]
[323778147,1714285838316,-346.58,0.00015694,2]
[323778148,1714285838326,-167.96,0.00015755,2]
[323778149,1714285838338,-154.24,0.00015818,2]
[323778150,1714285838348,-169.14,0.00015823,2]
[323778151,1714285838357,-165.76,0.00015827,2]
[323778152,1714285838367,-154.24,0.00015954,2]
[323778153,1714285838377,-324.37,0.00015971,2]
[323778154,1714285838386,-170.28,0.00015994,2]
[323778155,1714285838395,-154.24,0.0001609,2]
[323778156,1714285838404,-154.24,0.00016226,2]
[323778157,1714285838413,-154.24,0.00016363,2]
[323778158,1714285838424,-4365.14,0.00016438,2]
[323778159,1714285838433,-4365.14,0.00016438,2]
[323778160,1714285838443,-4365.14,0.00016438,2]
[323778161,1714285838452,-2131.68,0.00016438,2]
[323778162,1714285838463,-154.24,0.00016499,2]
[323778163,1714285838472,-4365.14,0.00016655,2]
[323778164,1714285838481,-150.0,0.00016852,2]
[323778165,1714285838490,-166.99,0.00017345,2]
[323778166,1714285838500,-5579.0,0.000175,2]
[323778167,1714285838509,-939.0,0.000175,2]
[323778168,1714285838519,-194.72,0.0001753,2]
[323778169,1714285838528,-1000.0,0.00017552,2]
[323778170,1714285838537,-8513.26,0.00017728,2]
[323778171,1714285838546,-2542.32800445,0.00017813,2]
[323778172,1714285838556,-158.05,0.00017865,2]
[323778173,1714285838566,-484.771344,0.00017874,2]
[323778174,1714285838575,-333.123228,0.00017874,2]
[323778175,1714285838584,-12406.294931,0.00017874,2]
[323778176,1714285838593,-3413.970792,0.00017874,2]
[323778177,1714285838603,-253.811402,0.00017874,2]
[323778178,1714285838614,-200.0,0.00017874,2]
[323778179,1714285838625,-36244.259249,0.00017874,2]
[323778180,1714285838634,-177.18201028,0.000179,2]
[323778181,1714285838644,-346.58,0.00017958,2]
[323778182,1714285838654,-14422.05773404,0.00017998,2]
[323778183,1714285838664,-3072.30580356,0.00018,2]
[323778184,1714285838673,-3000.0,0.00018,2]
[323778185,1714285838683,-813.0,0.00018066,2]
[323778186,1714285838692,-484.771344,0.00018098,2]
[323778187,1714285838701,-333.123228,0.00018098,2]
[323778188,1714285838711,-12406.294931,0.00018098,2]
[323778189,1714285838720,-3413.970792,0.00018098,2]
[323778190,1714285838729,-253.811402,0.00018098,2]
[323778191,1714285838739,-36244.259249,0.00018098,2]
[323778192,1714285838748,-150.0,0.00018247,2]
[323778193,1714285838757,-419.34,0.00018247,2]
[323778194,1714285838767,-150.0,0.00018247,2]
[323778195,1714285838776,-522.29,0.00018247,2]
[323778196,1714285838786,-162.92,0.00018247,2]
[323778197,1714285838795,-350.62,0.00018247,2]
[323778198,1714285838804,-150.0,0.00018247,2]
[323778199,1714285838813,-151.57,0.00018247,2]
[323778200,1714285838823,-150.0,0.00018247,2]
[323778201,1714285838833,-150.0,0.00018247,2]
[323778202,1714285838843,-150.0,0.00018247,2]
[323778203,1714285838852,-522.29,0.00018247,2]
[323778204,1714285838861,-150.0,0.00018247,2]
[323778205,1714285838872,-150.0,0.00018247,2]
[323778206,1714285838882,-419.34,0.00018247,2]
[323778207,1714285838891,-150.0,0.00018247,2]
[323778208,1714285838900,-150.0,0.00018247,2]
[323778209,1714285838909,-350.62,0.00018247,2]
[323778210,1714285838918,-162.92,0.00018247,2]
[323778211,1714285838927,-150.0,0.00018247,2]
[323778212,1714285838937,-419.34,0.00018247,2]
[323778213,1714285838950,-150.0,0.00018247,2]
[323778214,1714285838960,-150.0,0.00018247,2]
[323778215,1714285838969,-162.92,0.00018247,2]
[323778216,1714285838979,-150.0,0.00018247,2]
[323778217,1714285838988,-522.29,0.00018247,2]
[323778218,1714285838997,-150.0,0.00018247,2]
[323778219,1714285839006,-350.62,0.00018247,2]
[323778220,1714285839017,-150.0,0.00018247,2]
[323778221,1714285839026,-150.0,0.00018247,2]
[323778222,1714285839036,-150.0,0.00018247,2]
[323778223,1714285839045,-150.0,0.00018247,2]
[323778224,1714285839056,-419.34,0.00018247,2]
[323778225,1714285839065,-150.0,0.00018247,2]
[323778226,1714285839074,-350.62,0.00018247,2]
[323778227,1714285839083,-150.0,0.00018247,2]
[323778228,1714285839092,-522.29,0.00018247,2]
[323778229,1714285839102,-162.92,0.00018247,2]
[323778230,1714285839111,-150.0,0.00018247,2]
[323778231,1714285839122,-150.0,0.00018247,2]
[323778232,1714285839132,-419.34,0.00018247,2]
[323778233,1714285839142,-150.0,0.00018247,2]
[323778234,1714285839152,-150.0,0.00018247,2]
[323778235,1714285839161,-522.29,0.00018247,2]
[323778236,1714285839171,-150.0,0.00018247,2]
[323778237,1714285839180,-150.0,0.00018247,2]
[323778238,1714285839189,-350.62,0.00018247,2]
[323778239,1714285839198,-162.92,0.00018247,2]
[323778240,1714285839208,-484.771344,0.00018321,2]